bitfinex/quotes_BTCUSD_20241216
["timestamp","ask_amount","ask_price","bid_price","bid_amount"]
[1734368826955,0.00059989,106650.0,106640.0,0.15]
[1734368827131,0.00059989,106650.0,106640.0,0.2442907]
[1734368827483,0.00059989,106650.0,106640.0,0.25729118]
[1734368828097,0.05753067,106660.0,106640.0,0.25729118]
[1734368828299,0.00250654,106650.0,106640.0,0.01356037]
[1734368828503,0.00250654,106650.0,106640.0,0.09485059]
[1734368828711,0.03768288,106670.0,106640.0,0.24485059]
[1734368828911,0.00248175,106650.0,106640.0,0.15055989]
[1734368829132,0.00248175,106650.0,106640.0,0.24485059]
[1734368829264,0.03768288,106670.0,106640.0,0.24485059]
[1734368829466,0.03768288,106670.0,106650.0,0.2442907]
[1734368829467,0.0024828,106660.0,106650.0,0.2442907]
[1734368829897,0.0024828,106660.0,106650.0,0.31216868]
[1734368830101,0.0024828,106660.0,106650.0,0.2896907]
[1734368833050,0.30681851,106700.0,106650.0,0.2896907]
[1734368833258,0.01748751,106690.0,106650.0,0.2896907]
[1734368833467,0.1630547,106700.0,106660.0,0.00093744]
[1734368833679,0.01748523,106690.0,106670.0,0.0942907]
[1734368833880,0.01748523,106680.0,106670.0,0.0942907]
[1734368834086,0.16588117,106700.0,106670.0,0.0942907]
[1734368834297,0.01748498,106690.0,106670.0,0.11871977]
[1734368834506,0.00282647,106700.0,106670.0,0.11871977]
[1734368834707,0.01748406,106690.0,106670.0,0.0942907]
[1734368834913,0.00282647,106700.0,106670.0,0.0942907]
[1734368835147,0.01748374,106690.0,106670.0,0.0942907]
[1734368835361,0.00282647,106700.0,106670.0,0.0942907]
[1734368835566,0.01748266,106690.0,106670.0,0.0942907]
[1734368835771,0.12839407,106700.0,106670.0,0.0942907]
[1734368835976,0.01748357,106690.0,106670.0,0.0942907]
[1734368836184,0.16599597,106700.0,106670.0,0.0942907]
[1734368836401,0.01748595,106690.0,106670.0,0.0942907]
[1734368836643,0.00282647,106700.0,106670.0,0.0942907]
[1734368836825,0.01748609,106690.0,106680.0,0.15]
[1734368837038,0.03822491,106710.0,106680.0,0.29302795]
[1734368837243,0.01748602,106700.0,106690.0,0.0942907]
[1734368837455,0.03887291,106720.0,106690.0,0.0942907]
[1734368837684,0.02026404,106710.0,106690.0,0.0942907]
[1734368837885,0.20922105,106730.0,106680.0,0.10585096]
[1734368838105,0.01747773,106720.0,106690.0,0.0942907]
[1734368838330,0.01747773,106710.0,106690.0,0.0942907]
[1734368838535,0.1754907,106710.0,106680.0,0.00016805]
[1734368838957,0.1117604,106700.0,106680.0,0.00016805]
[1734368839163,0.0001728,106690.0,106680.0,0.00016805]
[1734368839980,0.01764357,106690.0,106680.0,0.00016805]
[1734368840624,0.0001728,106690.0,106680.0,0.00016805]
[1734368842540,0.01764402,106690.0,106680.0,0.00016805]
[1734368842832,0.0001728,106690.0,106680.0,0.00016805]
[1734368843000,0.01747136,106700.0,106680.0,0.00016805]
[1734368843291,0.01747146,106690.0,106680.0,0.00016805]
[1734368843533,0.26295171,106710.0,106680.0,0.00016805]
[1734368843773,0.00614555,106690.0,106680.0,0.00016805]
[1734368844045,0.01747321,106700.0,106680.0,0.00016805]
[1734368844326,0.02361792,106690.0,106680.0,0.00016805]
[1734368844516,0.00614555,106690.0,106680.0,0.00016805]
[1734368844716,0.00409703,106690.0,106680.0,0.00016805]
[1734368846526,0.08370772,106700.0,106680.0,0.00016805]
[1734368846730,0.02158419,106690.0,106680.0,0.00016805]
[1734368846938,0.00410762,106690.0,106680.0,0.00016805]
[1734368847561,0.00410762,106690.0,106680.0,0.03761905]
[1734368847981,0.17909373,106700.0,106680.0,0.03761905]
[1734368848180,0.045435,106690.0,106680.0,0.03761905]
[1734368848399,0.17909373,106700.0,106680.0,0.00016805]
[1734368848602,0.04544013,106690.0,106680.0,0.00016805]
[1734368848820,0.14782285,106700.0,106680.0,0.00016805]
[1734368849025,0.04544013,106690.0,106680.0,0.00016805]
[1734368849250,0.14782285,106700.0,106680.0,0.00016805]
[1734368849467,0.04544049,106690.0,106680.0,0.00016805]
[1734368849678,0.14782285,106700.0,106680.0,0.00016805]
[1734368849884,0.05713862,106690.0,106680.0,0.00016805]
[1734368850090,0.14782285,106700.0,106680.0,0.15016805]
[1734368850354,0.05714319,106690.0,106680.0,0.17680016]
[1734368850564,0.27338443,106700.0,106680.0,0.15016805]
[1734368850766,0.05714319,106690.0,106680.0,0.15016805]
[1734368850984,0.14782285,106700.0,106680.0,0.15016805]
[1734368851196,0.05714316,106690.0,106680.0,0.15016805]
[1734368851401,0.27338443,106700.0,106680.0,0.15016805]
[1734368851624,0.05731594,106690.0,106680.0,0.1768088]
[1734368851859,0.01187092,106690.0,106680.0,0.1768088]
[1734368852060,0.0001728,106690.0,106680.0,0.15016805]
[1734368852280,0.0001728,106690.0,106680.0,0.00016805]
[1734368852930,0.1142707,106700.0,106680.0,0.00016805]
[1734368853133,0.05715125,106690.0,106680.0,0.00016805]
[1734368853336,0.0942907,106700.0,106680.0,0.00016805]
[1734368853548,0.05715495,106690.0,106680.0,0.00016805]
[1734368853759,0.01169814,106690.0,106680.0,0.00016805]
[1734368854604,0.00720814,106690.0,106680.0,0.00016805]
[1734368854818,0.00284003,106700.0,106680.0,0.00016805]
[1734368855017,0.04546007,106690.0,106680.0,0.00016805]
[1734368855224,0.09713073,106700.0,106680.0,0.00016805]
[1734368855476,0.0454603,106690.0,106680.0,0.00016805]
[1734368855699,0.14991149,106700.0,106680.0,0.00016805]
[1734368855912,0.04546355,106690.0,106680.0,0.00016805]
[1734368856119,0.14991149,106700.0,106680.0,0.00016805]
[1734368856336,0.04550874,106690.0,106680.0,0.00016805]
[1734368856571,0.14991149,106700.0,106680.0,0.00016805]
[1734368856819,0.04550874,106690.0,106680.0,0.00016805]
[1734368857030,0.14991149,106700.0,106680.0,0.00016805]
[1734368857235,0.13979944,106690.0,106680.0,0.00016805]
[1734368857459,0.26093272,106690.0,106680.0,0.00016805]
[1734368857658,0.93783308,106690.0,106670.0,8.64e-05]
[1734368857879,0.06855804,106680.0,106670.0,8.64e-05]
[1734368858100,0.22480197,106680.0,106670.0,8.64e-05]
[1734368858307,0.73419106,106680.0,106670.0,8.64e-05]
[1734368858511,0.66519979,106680.0,106670.0,8.64e-05]
[1734368858721,0.91773125,106680.0,106670.0,4.64e-05]
[1734368858925,0.91773125,106680.0,106640.0,8.64e-05]
[1734368859141,0.02801263,106660.0,106640.0,8.64e-05]
[1734368859349,0.04552052,106650.0,106640.0,8.64e-05]
[1734368859575,0.12230333,106660.0,106640.0,8.64e-05]
[1734368859770,0.04547852,106650.0,106640.0,8.64e-05]
[1734368860052,0.33981588,106660.0,106640.0,8.64e-05]
[1734368860186,0.1397692,106650.0,106640.0,8.64e-05]
[1734368860530,0.1397692,106650.0,106640.0,0.00064629]
[1734368860531,0.0942907,106650.0,106640.0,0.00064629]
[1734368862194,0.21991083,106650.0,106640.0,0.00064629]
[1734368862474,0.24786532,106650.0,106640.0,0.00064629]
[1734368862832,0.19380611,106650.0,106640.0,0.00064629]
[1734368863039,0.23863916,106650.0,106640.0,0.00064629]
[1734368863656,0.11301976,106650.0,106640.0,0.00064629]
[1734368864018,0.23863916,106650.0,106640.0,0.00064629]
[1734368864213,0.23863916,106650.0,106640.0,0.00114629]
[1734368864421,0.11301976,106650.0,106640.0,0.00114629]
[1734368865527,0.11305976,106650.0,106640.0,0.00114629]
[1734368866370,0.1116604,106650.0,106610.0,0.0257297]
[1734368866591,0.01743209,106640.0,106630.0,0.0462]
[1734368866803,0.00059999,106650.0,106630.0,0.1404907]
[1734368869117,0.00389344,106660.0,106630.0,0.1404907]
[1734368869338,0.01742766,106650.0,106630.0,0.21835069]
[1734368869545,0.00278402,106660.0,106630.0,0.21835069]
[1734368869741,0.01742695,106650.0,106640.0,0.2442907]
[1734368869956,0.01742531,106660.0,106650.0,0.0773]
[1734368870160,0.01742368,106680.0,106650.0,0.3215907]
[1734368870386,0.1210598,106690.0,106650.0,0.3215907]
[1734368870610,0.01742496,106680.0,106650.0,0.3215907]
[1734368870811,0.2153505,106690.0,106650.0,0.34372367]
[1734368871045,0.01742511,106680.0,106650.0,0.34372367]
[1734368871224,0.2153505,106690.0,106650.0,0.34372367]
[1734368871663,0.01742752,106680.0,106660.0,0.2920907]
[1734368871856,0.03733073,106690.0,106660.0,0.30738728]
[1734368872104,0.00280116,106680.0,106660.0,0.30738728]
[1734368872319,0.2880966,106700.0,106660.0,0.30738728]
[1734368872524,0.01742708,106690.0,106670.0,0.0799]
[1734368872737,0.08388632,106700.0,106670.0,0.32512814]
[1734368872738,0.03846244,106700.0,106670.0,0.32512814]
[1734368872949,0.03846244,106700.0,106670.0,0.34632367]
[1734368873159,0.01742633,106690.0,106670.0,0.15]
[1734368873365,0.0942907,106700.0,106670.0,0.15]
[1734368873516,0.01742743,106690.0,106660.0,0.1978]
[1734368873723,0.09445872,106700.0,106660.0,0.2920907]
[1734368873925,0.01742762,106690.0,106660.0,0.2920907]
[1734368874278,0.18795572,106700.0,106660.0,0.2920907]
[1734368874491,0.0174282,106690.0,106660.0,0.2920907]
[1734368874718,0.0174282,106680.0,106660.0,0.2920907]
[1734368874932,0.5591633,106700.0,106660.0,0.2920907]
[1734368875143,0.01742927,106690.0,106670.0,8.64e-05]
[1734368875351,0.5591633,106700.0,106670.0,8.64e-05]
[1734368875352,0.01742927,106680.0,106670.0,8.64e-05]
[1734368875556,0.5593361,106700.0,106670.0,8.64e-05]
[1734368875810,0.01743079,106690.0,106670.0,8.64e-05]
[1734368876025,0.01743079,106680.0,106670.0,8.64e-05]
[1734368876229,0.5593361,106700.0,106670.0,8.64e-05]
[1734368876435,0.01743252,106690.0,106670.0,8.64e-05]
[1734368876639,0.01743252,106680.0,106670.0,8.64e-05]
[1734368876822,0.08138318,106690.0,106670.0,8.64e-05]
[1734368877144,0.0174325,106680.0,106670.0,8.64e-05]
[1734368877391,0.08138318,106690.0,106670.0,8.64e-05]
[1734368877657,0.01743248,106680.0,106670.0,8.64e-05]
[1734368877945,0.79650236,106700.0,106670.0,8.64e-05]
[1734368878244,0.01743417,106690.0,106670.0,8.64e-05]
[1734368878496,0.01743417,106680.0,106670.0,8.64e-05]
[1734368878771,0.001,106690.0,106670.0,8.64e-05]
[1734368879028,0.01743543,106680.0,106670.0,8.64e-05]
[1734368879278,0.02889643,106690.0,106670.0,0.2443771]
[1734368879565,0.02889643,106690.0,106680.0,0.2442907]
[1734368879836,0.001,106690.0,106680.0,0.2442907]
[1734368880328,0.02889709,106690.0,106680.0,0.2442907]
[1734368880867,0.001,106690.0,106680.0,0.3723907]
[1734368883113,0.00477044,106730.0,106700.0,0.15]
[1734368883396,0.30176493,106750.0,106720.0,0.15]
[1734368883619,0.38435812,106750.0,106720.0,0.15]
[1734368883831,0.01742231,106740.0,106720.0,0.15]
[1734368884041,0.01742231,106730.0,106720.0,0.15]
[1734368884462,0.01740686,106740.0,106720.0,0.15]
[1734368884713,0.38446929,106750.0,106720.0,0.15]
[1734368884922,0.01739615,106740.0,106720.0,0.15]
[1734368885130,0.01739615,106730.0,106720.0,0.15]
[1734368885338,0.01738891,106740.0,106720.0,0.15]
[1734368885548,0.01738891,106730.0,106720.0,0.15]
[1734368885759,0.02016448,106740.0,106710.0,0.0942907]
[1734368885992,0.01738891,106730.0,106720.0,0.15]
[1734368886229,0.01738738,106730.0,106710.0,0.0942907]
[1734368886443,0.01738519,106730.0,106710.0,0.0942907]
[1734368887077,0.08636372,106740.0,106710.0,0.0942907]
[1734368887282,0.01737903,106730.0,106710.0,0.0942907]
[1734368887494,0.02775331,106730.0,106710.0,0.0942907]
[1734368887909,0.01737903,106730.0,106710.0,0.0942907]
[1734368888120,0.03874274,106740.0,106710.0,0.0942907]
[1734368888337,0.50647671,106750.0,106710.0,0.0942907]
[1734368888585,0.71544709,106750.0,106710.0,0.0942907]
[1734368888801,0.24267293,106740.0,106700.0,0.15]
[1734368889006,0.38524819,106740.0,106690.0,0.1271]
[1734368889224,0.76139487,106740.0,106690.0,0.2213907]
[1734368889683,0.76416387,106740.0,106690.0,0.2213907]
[1734368889899,0.20078223,106730.0,106690.0,0.2213907]
[1734368890135,0.29507293,106730.0,106690.0,0.24352977]
[1734368890348,0.1696907,106730.0,106700.0,0.14996]
[1734368891397,0.0942907,106730.0,106700.0,0.14996]
[1734368892669,0.29532753,106740.0,106710.0,0.0942907]
[1734368892885,0.29532753,106740.0,106710.0,0.1748907]
[1734368893095,0.79427416,106750.0,106710.0,0.19018118]
[1734368893311,0.02779814,106740.0,106710.0,0.19018118]
[1734368893525,0.00276704,106740.0,106710.0,0.19018118]
[1734368893708,0.00276704,106740.0,106720.0,0.0479]
[1734368893970,0.00276704,106740.0,106720.0,0.1421907]
[1734368894186,0.03862748,106750.0,106730.0,0.0942907]
[1734368895237,0.03862748,106750.0,106720.0,0.1979]
[1734368895477,0.06643012,106750.0,106720.0,0.2921907]
[1734368895692,0.03862748,106750.0,106720.0,0.2921907]
[1734368895897,0.06643012,106750.0,106720.0,0.2921907]
[1734368896139,0.06643012,106750.0,106720.0,0.15]
[1734368896351,0.03862748,106750.0,106710.0,0.2306]
[1734368896560,0.06643012,106750.0,106710.0,0.3248907]
[1734368896770,0.03862748,106750.0,106720.0,0.0942907]
[1734368896980,0.02780264,106740.0,106720.0,0.2442907]
[1734368897192,0.06645647,106750.0,106720.0,0.2442907]
[1734368897414,0.03862748,106750.0,106720.0,0.2442907]
[1734368897598,0.02783725,106740.0,106720.0,0.2442907]
[1734368897875,0.04141652,106750.0,106720.0,0.2442907]
[1734368898134,0.08755315,106760.0,106720.0,0.2442907]
[1734368898359,0.02785126,106750.0,106720.0,0.2442907]
[1734368898559,0.17819707,106760.0,106720.0,0.0942907]
[1734368898560,0.02785126,106740.0,106720.0,0.0942907]
[1734368898767,0.17819707,106760.0,106720.0,0.0942907]
[1734368898768,0.3837069,106760.0,106720.0,0.0942907]
[1734368898983,0.02785309,106750.0,106720.0,0.11177977]
[1734368899199,0.2165306,106760.0,106720.0,0.11177977]
[1734368899409,0.3837069,106760.0,106720.0,0.11177977]
[1734368899618,0.08334589,106750.0,106720.0,0.11177977]
[1734368899827,0.02785267,106740.0,106720.0,0.11177977]
[1734368900008,0.04527285,106730.0,106720.0,0.0942907]
[1734368900249,0.02785267,106740.0,106720.0,0.0942907]
[1734368900465,0.01742313,106730.0,106720.0,0.0942907]
[1734368900681,0.0001728,106750.0,106720.0,0.0942907]
[1734368900682,0.02787656,106740.0,106720.0,0.0942907]
[1734368900861,0.01742283,106730.0,106710.0,0.2306]
[1734368901069,0.02787681,106740.0,106710.0,0.3525707]
[1734368901306,0.0453,106730.0,106710.0,0.3525707]
[1734368901508,0.01742319,106720.0,106710.0,0.3525707]
[1734368901719,0.08351869,106750.0,106710.0,0.3525707]
[1734368901720,0.02788432,106740.0,106710.0,0.3525707]
[1734368901936,0.04531202,106730.0,106710.0,0.3525707]
[1734368902162,0.0174277,106720.0,106710.0,0.3525707]
[1734368902590,0.02788936,106740.0,106710.0,0.3525707]
[1734368902806,0.01743121,106730.0,106710.0,0.07012492]
[1734368903017,0.01743119,106720.0,106710.0,0.04244492]
[1734368903232,0.23082131,106750.0,106710.0,0.04244492]
[1734368904075,0.23082131,106750.0,106710.0,0.04338193]
[1734368905145,0.00282131,106750.0,106720.0,0.0455]
[1734368905405,0.00282131,106750.0,106720.0,0.1397907]
[1734368905635,0.00282131,106750.0,106720.0,0.15388029]
[1734368905857,0.00282131,106750.0,106720.0,0.23538029]
[1734368906097,0.09711201,106750.0,106720.0,0.0455]
[1734368907170,0.00282131,106750.0,106720.0,0.0455]
[1734368907382,0.00282131,106750.0,106730.0,0.0942907]
[1734368907818,0.00282131,106750.0,106720.0,0.0455]
[1734368908034,0.08334589,106760.0,106720.0,0.15250752]
[1734368908241,0.0942907,106760.0,106720.0,0.15250752]
[1734368909089,0.17763659,106760.0,106720.0,0.15250752]
[1734368909314,0.0942907,106760.0,106720.0,0.15250752]
[1734368909578,0.17763659,106760.0,106720.0,0.15250752]
[1734368909824,0.24370346,106760.0,106720.0,0.15250752]
[1734368910080,0.0942907,106750.0,106700.0,0.03781376]
[1734368910354,0.0942907,106750.0,106710.0,0.0942907]
[1734368910621,0.17763659,106750.0,106710.0,0.0942907]
[1734368910893,0.0942907,106750.0,106710.0,0.10750115]
[1734368911821,0.0942907,106750.0,106710.0,0.10758755]
[1734368912028,0.18056995,106750.0,106720.0,0.15]
[1734368912240,0.37843751,106750.0,106710.0,8.64e-05]
[1734368912448,0.38244199,106750.0,106710.0,8.64e-05]
[1734368912659,0.47661725,106750.0,106710.0,8.64e-05]
[1734368912871,0.25726995,106750.0,106710.0,0.1436771]
[1734368913078,0.25726995,106750.0,106720.0,0.2442907]
[1734368913079,0.03208871,106740.0,106720.0,0.2442907]
[1734368913287,0.02798591,106730.0,106720.0,0.2442907]
[1734368913507,0.00250066,106740.0,106720.0,0.2442907]
[1734368913719,0.03048784,106730.0,106720.0,0.2442907]
[1734368913960,0.00249956,106730.0,106720.0,0.2442907]
[1734368916551,0.00249956,106730.0,106720.0,0.0942907]
[1734368918034,0.14611961,106740.0,106720.0,0.0942907]
[1734368918261,0.04547613,106730.0,106720.0,0.0942907]
[1734368918473,0.29206809,106740.0,106720.0,0.0942907]
[1734368918684,0.02798631,106730.0,106720.0,0.0942907]
[1734368918896,0.29206809,106740.0,106720.0,0.0942907]
[1734368919120,0.04547808,106730.0,106720.0,0.0942907]
[1734368919328,0.29206809,106740.0,106720.0,0.0942907]
[1734368919536,0.04549007,106730.0,106720.0,0.0942907]
[1734368919740,0.29206809,106740.0,106720.0,0.0942907]
[1734368919952,0.04549031,106730.0,106720.0,0.0942907]
[1734368920155,0.50068815,106740.0,106720.0,0.0942907]
[1734368920391,0.04549998,106730.0,106720.0,0.0942907]
[1734368920596,0.50068815,106740.0,106720.0,0.0942907]
[1734368920597,0.29206809,106740.0,106720.0,0.0942907]
[1734368920830,0.04550161,106730.0,106720.0,0.0942907]
[1734368921036,0.29308682,106740.0,106720.0,0.0942907]
[1734368921250,0.04549956,106730.0,106720.0,0.0942907]
[1734368921454,0.12560864,106740.0,106720.0,0.0942907]
[1734368921675,0.0455122,106730.0,106720.0,0.0942907]
[1734368921885,0.02800751,106730.0,106720.0,0.0942907]
[1734368922111,0.12560864,106740.0,106720.0,0.0942907]
[1734368922321,0.04551235,106730.0,106720.0,0.0942907]
[1734368922526,0.12560864,106740.0,106720.0,0.0942907]
[1734368922730,0.01751161,106730.0,106720.0,0.0942907]
[1734368922971,0.33076561,106750.0,106720.0,0.0942907]
[1734368923184,0.17113851,106740.0,106720.0,0.0942907]
[1734368923396,0.01751149,106730.0,106720.0,0.0942907]
[1734368923606,0.47528613,106750.0,106720.0,0.1761907]
[1734368923819,0.0455298,106740.0,106720.0,0.17712758]
[1734368924026,0.01751146,106730.0,106720.0,0.1761907]
[1734368924244,0.2659384,106750.0,106720.0,0.1761907]
[1734368924444,0.04552588,106740.0,106720.0,0.1761907]
[1734368924672,0.01750995,106730.0,106720.0,0.1761907]
[1734368925081,0.02801594,106740.0,106720.0,0.1761907]
[1734368925288,0.01750996,106730.0,106720.0,0.1761907]
[1734368925465,0.51303501,106750.0,106720.0,0.1761907]
[1734368925667,0.01750859,106740.0,106720.0,0.1761907]
[1734368925874,0.01750859,106730.0,106720.0,0.1761907]
[1734368926078,0.12560864,106740.0,106720.0,0.1761907]
[1734368926285,0.01750886,106730.0,106720.0,0.1761907]
[1734368926486,0.12578144,106750.0,106730.0,0.0463]
[1734368926690,0.0001728,106750.0,106740.0,0.0942907]
[1734368929274,0.05812216,106760.0,106740.0,0.0942907]
[1734368930990,0.05812216,106760.0,106730.0,0.0463]
[1734368931208,0.01748664,106750.0,106730.0,0.1405907]
[1734368931418,0.05812216,106760.0,106730.0,0.1405907]
[1734368931624,0.1837308,106760.0,106730.0,0.1405907]
[1734368931856,0.0174865,106750.0,106730.0,0.1405907]
[1734368932065,0.08610056,106760.0,106730.0,0.1405907]
[1734368932295,0.01748621,106750.0,106730.0,0.1405907]
[1734368932506,0.2117092,106760.0,106730.0,0.1405907]
[1734368932725,0.01748672,106750.0,106730.0,0.1405907]
[1734368932929,0.0211009,106760.0,106730.0,0.1405907]
[1734368933155,0.58725896,106770.0,106740.0,0.0942907]
[1734368933362,0.01748695,106760.0,106740.0,0.0942907]
[1734368933571,0.41556248,106770.0,106740.0,0.0942907]
[1734368933779,0.01748585,106760.0,106740.0,0.10844345]
[1734368933988,0.41556248,106770.0,106740.0,0.10844345]
[1734368934193,0.01748595,106760.0,106740.0,0.10844345]
[1734368934409,0.16341772,106770.0,106740.0,0.18764345]
[1734368934624,0.03765125,106770.0,106740.0,0.18858013]
[1734368934850,0.03765125,106770.0,106740.0,0.18875293]
[1734368935073,8.64e-05,106760.0,106740.0,0.18875293]
[1734368937291,8.64e-05,106760.0,106750.0,0.15]
[1734368937508,8.64e-05,106760.0,106750.0,0.25485068]
[1734368938152,0.023,106780.0,106750.0,0.25485068]
[1734368938371,0.023,106780.0,106760.0,0.0942907]
[1734368938579,0.02580545,106780.0,106760.0,0.0942907]
[1734368939000,0.02580545,106780.0,106760.0,0.1403907]
[1734368939207,0.20466647,106790.0,106760.0,0.15454345]
[1734368939412,0.01745495,106780.0,106760.0,0.15454345]
[1734368939647,0.24278911,106790.0,106760.0,0.15454345]
[1734368939860,0.01745404,106780.0,106760.0,0.15454345]
[1734368940907,0.01745318,106780.0,106760.0,0.15454345]
[1734368941268,0.24278911,106790.0,106760.0,0.15454345]
[1734368941509,0.01745222,106780.0,106760.0,0.15454345]
[1734368942543,0.01745222,106780.0,106750.0,0.00056058]
[1734368942808,0.01745222,106780.0,106750.0,0.09485128]
[1734368943018,0.01744751,106780.0,106750.0,0.09578789]
[1734368943227,0.06947014,106790.0,106750.0,0.09578789]
[1734368943659,0.07234235,106790.0,106750.0,0.09578789]
[1734368944312,0.15608828,106790.0,106760.0,0.0825]
[1734368945163,0.07234235,106790.0,106760.0,0.0825]
[1734368945376,0.07234235,106790.0,106750.0,0.32515128]
[1734368947079,0.07242875,106790.0,106750.0,0.32515128]
[1734368947984,0.00742874,106790.0,106750.0,0.32515128]
[1734368949670,0.00455653,106790.0,106760.0,0.24522731]
[1734368949899,0.00455653,106790.0,106760.0,0.2442907]
[1734368951198,0.00455653,106790.0,106770.0,0.2261]
[1734368951409,0.00455653,106790.0,106770.0,0.3203907]
[1734368953063,0.00278231,106800.0,106770.0,0.3203907]
[1734368954363,0.0758864,106820.0,106780.0,0.0942907]
[1734368954585,0.0386754,106810.0,106790.0,0.0822]
[1734368954796,0.0758864,106820.0,106790.0,0.3264907]
[1734368955677,0.11346037,106820.0,106790.0,0.3264907]
[1734368955895,0.11362844,106820.0,106790.0,0.3264907]
[1734368956747,0.07605447,106820.0,106790.0,0.3264907]
[1734368957170,0.07891798,106820.0,106790.0,0.3264907]
[1734368958026,0.05219651,106820.0,106790.0,0.3264907]
[1734368958691,8.63e-05,106800.0,106790.0,0.3264907]
[1734368963110,0.01743733,106810.0,106790.0,0.3264907]
[1734368963319,0.04231128,106820.0,106790.0,0.3264907]
[1734368963536,0.01744148,106810.0,106790.0,0.3264907]
[1734368963749,0.023,106820.0,106790.0,0.3264907]
[1734368963963,0.01744143,106810.0,106790.0,0.3264907]
[1734368964173,0.023,106820.0,106790.0,0.3264907]
[1734368964382,0.01744615,106810.0,106790.0,0.3264907]
[1734368964595,0.023,106820.0,106790.0,0.3264907]
[1734368964816,0.01744616,106810.0,106790.0,0.3264907]
[1734368965016,0.0608059,106820.0,106790.0,0.3264907]
[1734368965017,0.023,106820.0,106790.0,0.3264907]
[1734368965131,0.01744616,106810.0,106790.0,0.3264907]
[1734368965363,0.023,106820.0,106790.0,0.3264907]
[1734368965579,0.01744675,106810.0,106790.0,0.3264907]
[1734368965782,0.023,106820.0,106790.0,0.3264907]
[1734368965981,0.01744679,106810.0,106790.0,0.3264907]
[1734368966186,0.023,106820.0,106790.0,0.3264907]
[1734368966396,0.01744679,106810.0,106790.0,0.3264907]
[1734368966598,0.023,106820.0,106790.0,0.3264907]
[1734368966843,0.01744779,106810.0,106790.0,0.3264907]
[1734368967043,0.0637544,106820.0,106790.0,0.3264907]
[1734368967246,0.01744779,106810.0,106790.0,0.3264907]
[1734368967445,0.023,106790.0,106760.0,0.0001726]
[1734368967827,0.01745378,106780.0,106760.0,0.0944633]
[1734368968027,0.08347533,106780.0,106760.0,0.0944633]
[1734368968162,0.33363899,106790.0,106760.0,0.0944633]
[1734368968365,0.33363899,106790.0,106760.0,0.0001726]
[1734368968366,0.01745418,106780.0,106760.0,0.0001726]
[1734368968572,0.40945437,106790.0,106760.0,0.0001726]
[1734368968911,0.01745442,106780.0,106760.0,0.1501726]
[1734368969130,0.409829,106790.0,106760.0,0.15034067]
[1734368969338,0.01745446,106780.0,106760.0,0.24463137]
[1734368969543,0.3155383,106790.0,106760.0,0.24463137]
[1734368969744,0.01745438,106780.0,106760.0,0.24463137]
[1734368969952,0.3155383,106790.0,106760.0,0.24463137]
[1734368970156,0.01745438,106780.0,106760.0,0.24463137]
[1734368970359,0.3155383,106790.0,106760.0,0.24463137]
[1734368970782,0.3155383,106790.0,106760.0,0.15034067]
[1734368970783,0.0174539,106780.0,106760.0,0.15034067]
[1734368970991,0.44845895,106790.0,106760.0,0.15034067]
[1734368971195,0.01745397,106780.0,106760.0,0.15034067]
[1734368971401,0.35416825,106790.0,106760.0,0.15034067]
[1734368971617,0.01745351,106780.0,106760.0,0.15034067]
[1734368971866,0.56312418,106790.0,106760.0,0.15034067]
[1734368972107,0.01745373,106780.0,106760.0,0.15034067]
[1734368972330,0.56312418,106790.0,106760.0,0.15034067]
[1734368972532,0.01745417,106780.0,106760.0,0.15034067]
[1734368972760,0.56312418,106790.0,106760.0,0.15034067]
[1734368972968,0.51557779,106790.0,106760.0,0.15034067]
[1734368973785,0.60986849,106790.0,106760.0,0.15034067]
[1734368973994,0.12537356,106780.0,106760.0,0.15034067]
[1734368974192,0.33432949,106780.0,106760.0,0.15034067]
[1734368974624,0.12537356,106780.0,106760.0,0.15034067]
[1734368975278,0.12537356,106780.0,106760.0,0.24463137]
[1734368975463,0.24758588,106790.0,106770.0,0.0821]
[1734368975464,0.16400351,106790.0,106770.0,0.0821]
[1734368975679,0.16400351,106790.0,106760.0,0.15034067]
[1734368975878,0.12537356,106780.0,106760.0,0.15034067]
[1734368977966,0.06037355,106780.0,106760.0,0.15034067]
[1734368978190,0.14409838,106780.0,106760.0,0.15034067]
[1734368978379,0.08372483,106770.0,106760.0,0.15034067]
[1734368980020,0.14409838,106780.0,106760.0,0.15034067]
[1734368980432,0.08372483,106770.0,106760.0,0.15034067]
[1734368980641,0.29918309,106770.0,106760.0,0.00034067]
[1734368980844,0.29920643,106770.0,106760.0,0.00034067]
[1734368981052,0.59190865,106770.0,106760.0,0.00034067]
[1734368981264,0.38295272,106770.0,106760.0,0.00034067]
[1734368981479,0.26178516,106770.0,106760.0,0.00034067]
[1734368981688,0.32925603,106770.0,106760.0,0.00034067]
[1734368982522,0.41297324,106770.0,106760.0,0.00034067]
[1734368982964,0.31868254,106770.0,106760.0,0.00034067]
[1734368983396,0.25121167,106770.0,106760.0,0.00034067]
[1734368983614,0.48966993,106770.0,106760.0,0.00034067]
[1734368983818,0.45265272,106770.0,106760.0,0.00034067]
[1734368984057,0.66160865,106770.0,106760.0,0.00034067]
[1734368984263,1.04000865,106770.0,106760.0,0.00034067]
[1734368984684,1.13418391,106770.0,106760.0,0.00034067]
[1734368984898,1.04000865,106770.0,106760.0,0.00034067]
[1734368985108,0.91884109,106770.0,106760.0,0.00034067]
[1734368985324,0.49355964,106770.0,106760.0,0.00034067]
[1734368985534,0.40988516,106770.0,106760.0,0.00034067]
[1734368985760,0.44683698,106770.0,106760.0,0.00034067]
[1734368986188,0.27934252,106770.0,106760.0,0.00034067]
[1734368986812,0.44683698,106770.0,106760.0,0.00034067]
[1734368987011,0.61071291,106770.0,106760.0,0.00034067]
[1734368987213,0.73188047,106770.0,106760.0,0.00034067]
[1734368987422,0.7316614,106770.0,106760.0,0.00034067]
[1734368987634,0.82583666,106770.0,106760.0,0.00034067]
[1734368988059,1.29910002,106770.0,106760.0,0.00034067]
[1734368988279,1.17363666,106770.0,106760.0,0.00034067]
[1734368988702,1.42021506,106770.0,106760.0,0.00034067]
[1734368988906,1.29480422,106770.0,106760.0,0.00034067]
[1734368989136,1.22751974,106770.0,106760.0,0.00034067]
[1734368989341,0.22046756,106750.0,106740.0,0.0001728]
[1734368989576,0.60743428,106750.0,106740.0,0.00073338]
[1734368990049,1.38305614,106750.0,106740.0,0.00073338]
[1734368990262,0.14416756,106720.0,106710.0,8.64e-05]
[1734368990522,0.76488145,106720.0,106710.0,0.00025444]
[1734368990724,0.82276539,106720.0,106710.0,0.00025444]
[1734368991147,0.95366825,106720.0,106710.0,0.00025444]
[1734368991397,1.04784351,106720.0,106710.0,0.00025444]
[1734368991647,1.04761121,106720.0,106710.0,0.00025444]
[1734368991879,1.25645242,106720.0,106710.0,0.00025444]
[1734368992284,0.92644365,106720.0,106710.0,0.00025444]
[1734368992492,0.95343595,106720.0,106710.0,0.00025444]
[1734368992910,0.40966839,106720.0,106710.0,0.00025444]
[1734368993132,0.0278211,106720.0,106710.0,0.00025444]
[1734368993365,0.23653318,106730.0,106710.0,0.00025444]
[1734368993582,0.01738895,106720.0,106710.0,0.00025444]
[1734368993793,0.11122062,106740.0,106710.0,0.00025444]
[1734368994014,0.01738272,106730.0,106710.0,0.00025444]
[1734368994223,0.01738272,106730.0,106710.0,0.24454514]